bitfinex/quotes_SOLUSD_20260105
["timestamp","ask_amount","ask_price","bid_price","bid_amount"]
[1767617350657,12.025877,134.92,134.87,4.61407742]
[1767617351155,4.61407742,134.88,134.84,1e-08]
[1767617351359,4.61407742,134.85,134.78,0.1]
[1767617351554,4.61407742,134.81,134.78,0.1]
[1767617353034,4.61407742,134.8,134.78,0.1]
[1767617353242,4.61407742,134.81,134.78,0.1]
[1767617354361,7.41729731,134.82,134.78,0.1]
[1767617354549,4.61407742,134.81,134.8,0.65592149]
[1767617354750,4.61407742,134.81,134.78,0.1]
[1767617354960,3.88907742,134.8,134.78,0.1]
[1767617355168,3.16407742,134.8,134.78,0.1]
[1767617355462,2.37408303,134.8,134.78,0.1]
[1767617355946,4.61407742,134.79,134.78,0.1]
[1767617356639,0.66832416,134.78,134.72,3.96694867]
[1767617356855,25.55302541,134.79,134.72,3.96694867]
[1767617356856,4.61407742,134.73,134.72,3.96694867]
[1767617357057,4.61407742,134.74,134.72,0.1]
[1767617357642,4.61407742,134.73,134.72,0.1]
[1767617357839,4.61407742,134.74,134.72,0.1]
[1767617358165,0.66832416,134.77,134.72,0.1]
[1767617358463,4.61407742,134.75,134.72,0.1]
[1767617358839,4.61407742,134.74,134.72,0.1]
[1767617360658,4.61407742,134.75,134.72,0.1]
[1767617360866,4.61407742,134.76,134.72,0.1]
[1767617362043,0.66832416,134.81,134.75,4.61407742]
[1767617362247,4.61407742,134.8,134.75,4.61407742]
[1767617362460,4.61407742,134.8,134.72,14.36228028]
[1767617362660,0.66832416,134.8,134.75,4.61407742]
[1767617362851,0.66832416,134.8,134.75,12.03472799]
[1767617363046,5.28240158,134.8,134.75,12.03472799]
[1767617363556,0.66832416,134.8,134.75,12.03472799]
[1767617363755,0.66832416,134.8,134.76,4.61407742]
[1767617364063,0.66832416,134.8,134.78,4.61407742]
[1767617364252,5.4440956,134.82,134.78,4.61407742]
[1767617364456,4.77577144,134.82,134.79,4.61407742]
[1767617369472,17.47551108,134.82,134.77,4.61407742]
[1767617370474,0.66832416,134.81,134.76,7.42045702]
[1767617370670,0.66832416,134.8,134.76,12.03453444]
[1767617370971,4.77577144,134.82,134.78,4.61407742]
[1767617371564,5.46101451,134.82,134.78,4.61407742]
[1767617372669,4.77577144,134.82,134.79,4.61407742]
[1767617372874,4.77577144,134.82,134.8,4.61407742]
[1767617374173,4.77577144,134.82,134.81,4.61407742]
[1767617375779,4.77577144,134.82,134.8,4.61407742]
[1767617376980,4.77577144,134.82,134.8,12.0323891]
[1767617378369,0.68524307,134.83,134.81,4.61407742]
[1767617378570,0.68524307,134.83,134.82,4.61407742]
[1767617378769,0.68524307,134.85,134.82,4.61407742]
[1767617381705,0.68524307,134.85,134.83,4.61407742]
[1767617381989,7.41479954,134.87,134.84,4.61407742]
[1767617381990,8.10004261,134.87,134.84,4.61407742]
[1767617385290,0.68524307,134.86,134.81,7.41784734]
[1767617385600,0.68524307,134.86,134.84,3.16407742]
[1767617385802,0.68524307,134.86,134.84,4.61407742]
[1767617388284,7.41479954,134.87,134.85,0.69609057]
[1767617388685,7.41420908,134.88,134.85,0.69609057]
[1767617388885,7.41420908,134.88,134.86,0.69609057]
[1767617389085,7.41420908,134.88,134.86,0.66609058]
[1767617392493,7.41420908,134.88,134.86,0.63609059]
[1767617393198,7.41420908,134.88,134.84,4.61407742]
[1767617393396,0.58097463,134.87,134.84,4.61407742]
[1767617393883,8.05945213,134.88,134.84,4.61407742]
[1767617394499,8.05945213,134.88,134.84,5.30641603]
[1767617395406,8.05945213,134.88,134.85,4.61407742]
[1767617395918,7.41420908,134.88,134.85,5.30641603]
[1767617396218,7.41420908,134.88,134.85,0.69233861]
[1767617396810,7.41420908,134.88,134.86,0.69233861]
[1767617401117,0.63442688,134.87,134.84,4.61407742]
[1767617402715,0.63442688,134.87,134.83,8.09428032]
[1767617402918,0.63442688,134.87,134.84,4.61407742]
[1767617404003,0.63442688,134.87,134.84,12.03026019]
[1767617404203,20.93373163,134.89,134.85,0.67781767]
[1767617404403,25.54780905,134.89,134.85,0.67781767]
[1767617405425,20.93373163,134.89,134.85,5.29189509]
[1767617406813,25.54780905,134.89,134.85,5.29189509]
[1767617408121,4.61407742,134.88,134.85,0.67781767]
[1767617408622,12.02836433,134.88,134.85,0.67781767]
[1767617408836,4.61407742,134.87,134.84,0.67781767]
[1767617409318,0.63442688,134.86,134.82,4.61407742]
[1767617409628,5.2485043,134.86,134.82,0.67781767]
[1767617410337,0.63442688,134.86,134.82,5.29189509]
[1767617410523,0.63442688,134.86,134.82,12.70903106]
[1767617412544,0.63442688,134.86,134.82,11.05002072]
[1767617413540,0.63442688,134.86,134.83,2.95506708]
[1767617414436,8.0599772,134.87,134.83,3.63288475]
[1767617414636,11.01504428,134.87,134.83,3.63288475]
[1767617415740,11.01504428,134.87,134.84,0.67781767]
[1767617415937,20.93423883,134.88,134.84,0.67781767]
[1767617416125,103.6,134.91,134.88,0.67781767]
[1767617416330,2.95506708,134.92,134.88,0.64781768]
[1767617416529,7.41179958,134.92,134.88,3.60288476]
[1767617416739,0.10470481,134.91,134.88,2.95506708]
[1767617417450,20.93149496,134.93,134.85,0.7415647]
[1767617417645,20.93149496,134.93,134.89,2.95506708]
[1767617418028,20.93149496,134.93,134.88,10.36902006]
[1767617418224,23.88656204,134.93,134.89,0.67781767]
[1767617418448,23.88656204,134.93,134.88,10.36902006]
[1767617419149,23.88656204,134.93,134.89,0.67781767]
[1767617419526,20.93149496,134.93,134.89,3.63288475]
[1767617419740,20.93149496,134.93,134.9,0.67781767]
[1767617419949,20.93149496,134.93,134.9,0.64781768]
[1767617421350,23.88656204,134.93,134.9,0.64781768]
[1767617423431,2.95506708,134.92,134.89,0.67781767]
[1767617423835,23.88656204,134.93,134.89,0.67781767]
[1767617424250,0.0347048,135.0,134.92,2.95506708]
[1767617424436,2.95506708,134.98,134.93,2.95506708]
[1767617424632,0.0647048,134.99,134.92,2.95506708]
[1767617424837,2.95506708,134.97,134.92,2.95506708]
[1767617425061,2.95506708,134.98,134.93,2.95506708]
[1767617425264,2.95506708,134.97,134.92,2.95506708]
[1767617425467,10.36430563,134.97,134.92,2.95506708]
[1767617426348,10.36430563,134.97,134.93,0.67781767]
[1767617428455,0.47999998,135.02,134.97,0.67781767]
[1767617428657,0.47999998,135.02,134.99,2.95506708]
[1767617428839,0.47999998,135.02,134.98,0.67781767]
[1767617428840,7.60593189,135.03,134.98,3.63288475]
[1767617429044,7.67063669,135.03,134.98,3.63288475]
[1767617429245,2.95506708,135.02,134.99,0.67781767]
[1767617429454,0.2,135.03,134.99,0.67781767]
[1767617429658,3.15506708,135.03,134.99,0.67781767]
[1767617430145,10.56095673,135.03,134.99,0.67781767]
[1767617431668,7.60588965,135.03,134.99,0.67781767]
[1767617431849,10.56095673,135.03,134.99,0.67781767]
[1767617433360,7.60588965,135.03,134.99,0.67781767]
[1767617433551,18.60903616,135.07,135.02,0.66719649]
[1767617433754,2.95506708,135.07,135.03,0.66719649]
[1767617434154,0.10064047,135.06,135.02,2.95506708]
[1767617434475,0.26142368,135.05,135.01,2.95506708]
[1767617434771,0.1022483,135.04,135.01,2.95506708]
[1767617435143,7.40505376,135.05,135.01,3.62226357]
[1767617435348,32.02978378,135.07,135.01,3.62226357]
[1767617435349,16.57406708,135.07,135.02,3.62226357]
[1767617436050,13.619,135.07,135.03,3.62226357]
[1767617436455,3.05570755,135.06,135.02,3.62226357]
[1767617436756,3.05570755,135.06,135.02,0.66719649]
[1767617437167,10.46029169,135.06,135.02,0.66719649]
[1767617437471,2.95506708,135.04,135.0,0.66719649]
[1767617438052,2.95506708,135.03,135.0,0.66719649]
[1767617439673,10.36100447,135.03,134.98,3.62226357]
[1767617439872,2.95506708,135.02,134.99,0.66719649]
[1767617440074,3.05889122,135.02,134.98,2.95506708]
[1767617440473,2.95506708,135.02,134.98,0.66719649]
[1767617441076,2.95506708,134.99,134.95,0.66719649]
[1767617441282,2.95506708,134.97,134.95,0.66719649]
[1767617441574,2.95506708,134.96,134.95,0.66719649]
[1767617443466,2.95506708,134.96,134.93,7.41119894]
[1767617443789,3.29561669,134.96,134.93,7.41119894]
[1767617444283,3.29561669,134.96,134.92,7.41179958]
[1767617444581,8.10002136,134.98,134.92,10.36686666]
[1767617444770,2.95506708,134.97,134.92,10.36686666]
[1767617444964,2.95506708,134.96,134.92,7.41179958]
[1767617445366,3.64297886,134.96,134.92,7.41179958]
[1767617446279,3.29561669,134.95,134.91,8.07938498]
[1767617446579,2.95506708,134.95,134.92,0.66719649]
[1767617448990,2.95506708,134.94,134.92,0.66719649]
[1767617449382,2.95506708,134.93,134.92,0.66719649]
[1767617451184,10.36631735,134.93,134.9,45.68523631]
[1767617451383,2.95506708,134.93,134.91,0.66719649]
[1767617452679,10.36641909,134.93,134.91,0.66719649]
[1767617453994,2.95506708,134.92,134.91,0.66719649]
[1767617454400,2.95506708,134.92,134.9,45.68490109]
[1767617458608,2.95506708,134.93,134.91,0.66686127]
[1767617458906,10.71000854,134.94,134.91,0.66686127]
[1767617459282,32.0460444,134.95,134.91,0.66686127]
[1767617459283,24.57772728,134.95,134.91,0.66686127]
[1767617461397,13.52,134.95,134.92,0.66147538]
[1767617461615,8.07836131,134.97,134.93,3.61654246]
[1767617461809,8.07836131,134.97,134.94,2.95506708]
[1767617462001,8.07836131,134.97,134.93,3.61654246]
[1767617462799,11.03342839,134.97,134.93,3.61654246]
[1767617463384,8.07836131,134.97,134.94,2.95506708]
[1767617464496,20.92870827,134.98,134.96,0.66147538]
[1767617464688,20.92870827,134.98,134.96,3.61654246]
[1767617465011,20.92870827,134.98,134.96,0.66147538]
[1767617465606,13.52,134.98,134.96,0.66147538]
[1767617465802,7.40765554,135.0,134.97,0.66147538]
[1767617465985,8.07679517,135.0,134.97,0.66147538]
[1767617466409,8.07679517,135.0,134.97,3.61654246]
[1767617466607,0.66913963,135.01,134.98,3.61654246]
[1767617466786,0.66913963,135.01,134.99,2.95506708]
[1767617466991,21.59572472,135.02,134.99,2.95506708]
[1767617467199,8.07572472,135.02,134.99,2.95506708]
[1767617467914,0.66913963,135.0,134.95,0.66147538]
[1767617468211,25.92236053,135.02,134.96,3.61654246]
[1767617468387,14.18913963,135.01,134.98,3.61654246]
[1767617468795,8.07613815,135.01,134.98,3.61654246]
[1767617468988,7.40645763,135.02,134.98,3.61654246]
[1767617469196,8.07559726,135.02,134.99,2.95506708]
[1767617469814,21.5951406,135.03,134.99,3.61654246]
[1767617470024,29.54461188,135.03,134.99,3.61654246]
[1767617470227,0.66913963,135.02,134.98,3.61654246]
[1767617471026,10.36192583,135.01,134.98,0.66147538]
[1767617474508,12.01449467,135.01,134.98,0.66147538]
[1767617475212,12.6836343,135.01,134.98,0.66147538]
[1767617475718,12.6836343,135.01,134.97,0.66147538]
[1767617476426,4.60763592,135.0,134.97,0.66147538]
[1767617476803,12.6836343,135.01,134.97,0.66147538]
[1767617482050,0.66913963,134.99,134.95,5.2691113]
[1767617482251,5.27677555,134.99,134.95,0.66147538]
[1767617482459,13.5,134.99,134.95,0.66147538]
[1767617482645,0.66913963,134.98,134.95,4.60763592]
[1767617482954,0.66913963,134.98,134.96,4.60763592]
[1767617483165,14.16913963,135.0,134.96,5.2691113]
[1767617483752,21.5770955,135.0,134.96,5.2691113]
[1767617483943,40.09561401,135.0,134.96,5.2691113]
[1767617484649,44.70324993,135.0,134.96,0.66147538]
[1767617486963,12.01595801,134.99,134.96,0.66147538]
[1767617487160,0.66913963,134.97,134.94,0.66147538]
[1767617487748,0.66913963,134.97,134.93,4.60763592]
[1767617488144,0.66913963,134.97,134.93,5.2691113]
[1767617488345,0.66913963,134.97,134.93,4.60763592]
[1767617488551,0.66913963,134.97,134.93,5.2691113]
[1767617488751,0.66913963,134.96,134.92,12.68086536]
[1767617488954,0.66913963,134.96,134.92,12.01938998]
[1767617490657,0.72300303,134.95,134.92,4.60763592]
[1767617491558,7.40962425,134.96,134.93,0.72224989]
[1767617491967,0.72300303,134.95,134.91,5.32988581]
[1767617492162,0.72300303,134.95,134.91,4.60763592]
[1767617492572,0.72300303,134.95,134.91,12.74216597]
[1767617493766,7.40962425,134.96,134.92,0.72224989]
[1767617494075,21.6321996,134.97,134.93,5.32988581]
[1767617495267,21.6321996,134.97,134.94,0.72224989]
[1767617496569,26.23983552,134.97,134.94,0.72224989]
[1767617499269,13.5,134.97,134.94,0.72224989]
[1767617500185,12.73987605,134.97,134.94,0.72224989]
[1767617500592,8.13224013,134.97,134.94,0.72224989]
[1767617505396,0.72300303,134.96,134.92,0.72224989]
[1767617505564,5.33063895,134.94,134.91,0.72224989]
[1767617505981,0.72300303,134.94,134.91,0.72224989]
[1767617506871,8.13376691,134.94,134.91,0.72224989]
[1767617507271,12.74140283,134.94,134.9,45.74028971]
[1767617507679,4.60763592,134.93,134.9,45.74028971]
[1767617507867,8.13376691,134.94,134.9,0.72224989]
[1767617507868,4.60763592,134.92,134.9,0.72224989]
[1767617509189,12.01948932,134.92,134.89,0.72224989]
[1767617509409,4.60763592,134.9,134.86,0.72224989]
[1767617509896,5.33063895,134.9,134.86,0.72224989]
[1767617510070,12.74357113,134.9,134.86,0.72224989]
[1767617510270,0.72300303,134.89,134.85,7.41554759]
[1767617510470,12.0205681,134.9,134.86,0.72224989]
[1767617511412,12.74357113,134.9,134.86,0.72224989]
[1767617511716,4.60763592,134.89,134.86,0.72224989]
[1767617511912,5.33063895,134.9,134.86,0.72224989]
[1767617513395,12.74359106,134.9,134.86,0.72224989]
[1767617513892,0.66021006,134.89,134.86,7.41509167]
[1767617515097,0.66021006,134.91,134.87,5.26912225]
[1767617515309,26.19934385,134.93,134.87,5.26912225]
[1767617515511,0.66021006,134.92,134.88,0.66148633]
[1767617516412,26.19934385,134.93,134.89,0.66148633]
[1767617516904,0.66021006,134.92,134.88,12.02153946]
[1767617518810,13.52,134.93,134.9,0.66148633]
[1767617518988,12.6788099,134.94,134.9,0.66148633]
[1767617520390,8.07117398,134.94,134.9,0.66148633]
[1767617520594,12.6788099,134.94,134.9,0.66148633]
[1767617521894,4.60763592,134.93,134.9,0.66148633]
[1767617523020,12.6788099,134.94,134.9,0.66148633]
[1767617525226,12.6788099,134.94,134.9,0.63148633]
[1767617528416,8.07117398,134.94,134.9,0.63148633]
[1767617528724,12.6788099,134.94,134.9,0.63148633]
[1767617528917,5.26784598,134.94,134.9,8.04434893]
[1767617529108,0.66163212,134.96,134.93,0.72335437]
[1767617529312,0.66163212,134.96,134.93,0.6647069]
[1767617529819,14.18163212,134.98,134.94,4.60763592]
[1767617530032,0.66163212,134.98,134.94,4.60763592]
[1767617531311,0.66163212,134.98,134.94,5.33099029]
[1767617532807,8.07025753,134.98,134.94,5.33099029]
[1767617533829,8.07025753,134.98,134.94,0.72335437]
[1767617534031,0.66163212,134.96,134.92,0.72335437]
[1767617534233,0.66163212,134.97,134.93,8.13459158]
[1767617534427,0.66163212,134.97,134.94,0.72335437]
[1767617534631,0.66163212,134.97,134.93,10.36139532]
[1767617534809,0.66163212,134.97,134.93,11.08474969]
[1767617537130,8.07085121,134.97,134.93,3.67351248]
[1767617537333,8.07085121,134.97,134.94,0.72335437]
[1767617538432,3.61179023,134.95,134.91,0.72335437]
[1767617538833,0.66163212,134.95,134.91,3.67351248]
[1767617539926,0.66163212,134.95,134.91,11.08579534]
[1767617540124,0.66163212,134.95,134.91,8.13563723]
[1767617540323,0.66163212,134.97,134.93,3.67351248]
[1767617541240,8.0708109,134.97,134.93,3.67351248]
[1767617543021,0.66163212,134.97,134.93,3.67351248]
[1767617543221,8.07069084,134.97,134.93,3.67351248]
[1767617544246,8.07069084,134.97,134.94,0.72335437]
[1767617544443,0.66163212,134.97,134.94,0.72335437]
[1767617544948,21.5904175,134.98,134.95,0.72335437]
[1767617547539,8.0704175,134.98,134.95,0.72335437]
[1767617552970,0.70824307,134.97,134.94,2.95015811]
[1767617553256,0.70824307,135.0,134.95,2.95015811]
[1767617553458,0.70824307,135.0,134.96,2.95015811]
[1767617554054,0.70824307,135.0,134.95,2.95015811]
[1767617554361,0.70824307,135.0,134.96,2.95015811]
[1767617554939,0.70824307,135.0,134.96,3.66228915]
[1767617555347,0.70824307,134.99,134.96,2.95015811]
[1767617555742,0.70824307,134.99,134.97,2.95015811]
[1767617556360,7.40715562,135.01,134.97,2.95015811]
[1767617556559,8.11539869,135.01,134.98,0.71213104]
[1767617561240,11.0655568,135.01,134.98,0.71213104]
[1767617562145,2.95015811,135.0,134.98,0.71213104]
[1767617562345,11.06622346,135.0,134.96,0.71213104]
[1767617562546,2.95015811,134.99,134.96,0.71213104]
[1767617564573,8.11606535,135.0,134.96,0.71213104]
[1767617564751,11.06622346,135.0,134.96,0.71213104]
[1767617566646,8.11606535,135.0,134.96,0.71213104]
[1767617567458,8.11532262,135.01,134.97,0.71213104]
[1767617567869,0.70824307,135.0,134.96,0.71213104]
[1767617568173,2.95015811,134.99,134.96,0.71213104]
[1767617568466,10.35811442,134.99,134.96,0.71213104]
[1767617568772,11.0660631,135.0,134.96,0.71213104]
[1767617569064,0.70824307,134.99,134.96,0.71213104]
[1767617569263,3.65840118,134.99,134.96,0.71213104]
[1767617571373,0.70824307,134.99,134.96,0.71213104]
[1767617572150,8.11636497,134.99,134.96,0.71213104]
[1767617573859,11.06652308,134.99,134.96,0.71213104]
[1767617580694,8.11636497,134.99,134.96,0.71213104]
[1767617581600,0.6978452,135.0,134.97,0.68818393]
[1767617583305,0.6978452,135.0,134.97,8.09719072]
[1767617583996,0.6978452,135.0,134.97,0.68818393]
[1767617584298,7.40685935,135.01,134.97,0.68818393]
[1767617584491,8.10470455,135.01,134.97,0.68818393]
[1767617587211,11.05486266,135.01,134.97,0.68818393]
[1767617596512,12.71203464,135.01,134.97,0.68818393]
[1767617600511,0.6978452,134.98,134.95,0.68818393]
[1767617600810,0.67354362,134.98,134.94,0.68818393]
[1767617601194,0.67354362,134.98,134.93,4.60733009]
[1767617601597,4.60733009,134.98,134.94,7.4106401]
[1767617602422,12.01593365,134.98,134.93,7.41102751]
[1767617602601,0.6978452,134.97,134.93,7.41102751]
[1767617603305,0.6978452,134.97,134.94,0.68818393]
[1767617603510,12.71377885,134.98,134.94,0.68818393]
[1767617605024,5.30517529,134.97,134.94,0.68818393]
[1767617605322,5.30517529,134.97,134.93,8.09921144]
[1767617605824,5.30517529,134.97,134.92,0.68818393]
[1767617605825,5.30517529,134.95,134.92,0.68818393]
[1767617605995,0.6978452,134.95,134.92,0.68818393]
[1767617606201,5.30517529,134.95,134.92,0.68818393]
[1767617606700,0.6978452,134.95,134.92,0.68818393]
[1767617606906,5.30517529,134.97,134.93,0.68818393]
[1767617607309,0.6978452,134.97,134.93,0.68818393]
[1767617607511,5.30517529,134.97,134.93,0.68818393]
[1767617607893,26.21393625,134.98,134.94,0.68818393]
[1767617608831,14.1978452,134.98,134.94,0.68818393]
[1767617609122,0.6978452,134.97,134.93,4.60733009]
[1767617609323,0.63791801,134.97,134.93,4.60733009]
[1767617610017,0.63791801,134.97,134.94,12.01803114]
[1767617611323,0.63791801,134.97,134.94,7.41070105]
[1767617611726,0.63791801,134.97,134.94,8.13453142]
[1767617612215,0.57791905,134.97,134.94,8.13453142]
[1767617615307,0.51791974,134.97,134.94,8.13453142]
[1767617616228,12.01532223,134.99,134.95,0.72383037]
[1767617617426,12.70869641,134.99,134.95,0.72383037]
[1767617623541,5.30070427,134.97,134.94,0.72383037]
[1767617627338,0.69337418,134.97,134.94,0.72383037]
[1767617631436,8.10220742,134.98,134.95,0.72383037]
[1767617633324,12.70953751,134.98,134.95,0.72383037]
[1767617634344,0.69337418,134.98,134.95,0.72383037]
[1767617635277,12.70926553,134.98,134.95,0.72383037]
[1767617635434,5.28912923,134.96,134.93,0.70886737]
[1767617635625,0.68179914,134.95,134.92,14.20886737]
[1767617635824,0.68179914,134.95,134.92,0.70886737]
[1767617637538,5.28912923,134.95,134.92,0.70886737]
[1767617637931,0.68179914,134.95,134.92,0.70886737]
[1767617641446,0.67391858,134.94,134.91,8.13442109]
[1767617641645,5.28124867,134.95,134.92,0.72236533]
[1767617642150,12.69141061,134.95,134.92,0.72236533]
[1767617644154,5.28124867,134.95,134.92,0.72236533]
[1767617645948,0.67391858,134.95,134.92,0.72236533]
[1767617647462,103.6,135.0,134.94,0.72236533]
[1767617647463,0.67391858,134.99,134.94,0.72236533]
[1767617647632,0.67391858,134.99,134.95,5.32969542]
[1767617647633,0.67391858,134.98,134.95,5.32969542]
[1767617647835,0.67391858,134.98,134.95,0.72236533]
[1767617648660,0.67391858,134.98,134.95,5.32969542]
[1767617648959,8.08201019,134.99,134.96,0.72236533]
[1767617649138,0.67391858,134.98,134.95,5.32969542]
[1767617649541,0.67391858,134.98,134.95,4.60733009]
[1767617650275,0.67391858,134.98,134.94,12.74005231]
[1767617652836,0.67391858,134.98,134.94,8.13272222]
[1767617653032,0.67391858,134.97,134.94,8.13272222]
[1767617653259,0.67391858,134.96,134.93,4.60733009]
[1767617653441,0.67391858,134.96,134.93,12.01821816]
[1767617653761,0.67391858,134.96,134.94,11.29296498]
[1767617656649,0.67391858,134.96,134.94,2.95007171]
[1767617656851,0.67391858,134.98,134.94,2.95007171]
[1767617657056,0.67391858,134.98,134.95,2.95007171]
[1767617658668,0.67391858,134.99,134.96,0.72236533]
[1767617658967,0.26840866,134.99,134.96,0.69364861]
[1767617666657,7.67643208,134.99,134.96,0.69364861]
[1767617667276,7.67643208,134.99,134.96,0.66365118]
[1767617668070,3.62399029,134.98,134.94,7.41044661]
[1767617668268,0.29810611,134.97,134.94,7.41044661]
[1767617668461,3.62399029,134.98,134.94,7.41044661]
[1767617669164,0.67391858,134.98,134.95,0.72236533]
[1767617671379,8.08248297,134.98,134.95,0.72236533]
[1767617671566,0.67391858,134.98,134.95,0.72236533]
[1767617682702,0.67391858,134.98,134.9,0.74128984]
[1767617682703,0.099,134.93,134.83,0.1]
[1767617682982,0.10366449,134.87,134.83,11.16741422]
[1767617683301,0.10366449,134.87,134.84,7.41607399]
[1767617687487,2.95007171,134.88,134.85,0.70080646]
[1767617687864,2.95007171,134.87,134.85,0.70080646]
[1767617688065,7.98381502,134.89,134.85,0.70080646]
[1767617688364,2.95007171,134.87,134.85,0.70080646]
[1767617689881,2.95007171,134.87,134.84,0.70080646]
[1767617694976,3.8305457,134.87,134.84,0.70080646]
[1767617695792,11.24547718,134.87,134.84,0.70080646]
[1767617695994,11.81092603,134.87,134.84,0.70080646]
[1767617696369,0.97947399,134.87,134.83,0.81826811]
[1767617696568,0.97947399,134.87,134.84,0.71826811]
[1767617697765,11.24518689,134.87,134.84,0.71826811]
[1767617698196,2.95007171,134.86,134.83,0.81826811]
[1767617698677,3.0537362,134.86,134.83,0.81826811]
[1767617698870,1.441305,134.85,134.83,0.1]
[1767617699077,4.39137671,134.85,134.83,0.1]
[1767617700378,11.80705599,134.85,134.83,0.1]
[1767617700579,2.95007171,134.84,134.81,0.1]
[1767617701189,3.42023217,134.84,134.81,0.1]
[1767617701572,0.47016046,134.84,134.81,0.1]
[1767617701771,0.97947399,134.85,134.81,8.21340475]
[1767617702000,8.39519617,134.85,134.81,0.79559821]
[1767617702504,8.29619617,134.85,134.81,0.79559821]
[1767617702976,8.39519617,134.85,134.81,0.79559821]
[1767617703305,11.34526788,134.85,134.81,0.79559821]
[1767617703600,8.39519617,134.85,134.81,0.79559821]
[1767617703797,0.88047399,134.85,134.82,0.69559821]
[1767617703974,0.71856673,134.86,134.84,2.95007171]
[1767617704299,7.41365166,134.89,134.85,2.95007171]
[1767617704300,0.69494303,134.88,134.85,2.95007171]
[1767617704491,0.69494303,134.88,134.86,2.95007171]
[1767617706706,7.41315564,134.9,134.86,3.64566992]
[1767617707000,8.10809867,134.9,134.87,0.69559821]
[1767617707701,0.69494303,134.9,134.87,3.64566992]
[1767617709791,0.69494303,134.9,134.87,0.69559821]
[1767617711101,14.21494303,134.92,134.89,0.69559821]
[1767617711309,14.21494303,134.92,134.89,3.64566992]
[1767617711690,8.10642158,134.93,134.89,3.64566992]
[1767617711882,8.10642158,134.93,134.9,0.69559821]
[1767617713303,0.69494303,134.93,134.9,0.69559821]
[1767617714216,11.0559443,134.94,134.9,0.69559821]
[1767617714706,7.41092956,134.94,134.91,0.69559821]
[1767617714892,0.69494303,134.96,134.92,3.64566992]
[1767617715088,8.10454628,134.96,134.92,3.64566992]
[1767617715387,11.05461799,134.96,134.92,0.69559821]
[1767617715587,8.10454628,134.96,134.92,0.69559821]
[1767617715802,11.05461799,134.96,134.92,0.69559821]
[1767617716605,12.71572191,134.96,134.92,0.69559821]
[1767617717005,8.10454628,134.96,134.93,0.69559821]
[1767617718004,5.30611866,134.96,134.93,0.69559821]
[1767617718600,12.71578113,134.96,134.93,0.69559821]
[1767617721719,0.69494303,134.96,134.93,5.30677384]
[1767617721897,5.30611866,134.98,134.94,0.69559821]
[1767617722213,0.69494303,134.97,134.94,0.69559821]
[1767617722913,12.71538189,134.97,134.94,0.69559821]
[1767617723115,0.69494303,134.95,134.89,14.21559821]
[1767617723299,0.69494303,134.95,134.91,4.61117563]
[1767617725209,8.10511427,134.95,134.91,4.61117563]
[1767617725494,0.69494303,134.94,134.91,4.61117563]
[1767617726220,0.0303845,134.93,134.86,0.69559821]
[1767617726399,0.099,134.9,134.86,5.30677384]
[1767617727101,0.099,134.9,134.87,4.61117563]
[1767617727301,0.099,134.9,134.87,12.02544363]
[1767617728817,0.099,134.9,134.87,7.414268]
[1767617729109,4.61117563,134.91,134.88,0.69559821]
[1767617730512,12.02299419,134.92,134.88,8.10954391]
[1767617730704,12.02266044,134.93,134.89,0.69559821]
[1767617731095,20.93089203,134.94,134.9,0.68357865]
[1767617731295,0.099,134.93,134.89,5.29475428]
[1767617733296,0.099,134.93,134.89,8.09664653]
[1767617733604,0.099,134.93,134.89,12.70782216]
[1767617734718,0.099,134.93,134.89,8.09664653]
[1767617734919,0.6203681,134.92,134.88,5.29475428]
[1767617736420,12.02253952,134.93,134.89,0.68357865]
[1767617738115,12.02253952,134.93,134.9,0.68357865]
[1767617738317,4.61117563,134.92,134.9,0.68357865]
[1767617738526,12.02253952,134.93,134.9,0.68357865]
[1767617740509,4.61117563,134.92,134.9,0.68357865]
[1767617741020,12.02253952,134.93,134.9,0.68357865]
[1767617741919,4.61117563,134.93,134.9,0.68357865]
[1767617744727,12.02247216,134.93,134.9,0.68357865]
[1767617747516,0.10421368,134.92,134.88,12.02491252]
[1767617748031,0.10421368,134.92,134.87,12.02544354]
[1767617748508,0.61520656,134.91,134.87,12.02544354]
[1767617750308,0.10932361,134.9,134.87,12.02544354]
[1767617750508,18.52883406,134.93,134.89,0.68357865]
[1767617750509,7.41161906,134.93,134.89,0.68357865]
[1767617750710,7.51061906,134.93,134.89,0.68357865]
[1767617752934,7.41161906,134.93,134.89,0.68357865]
[1767617754734,12.02279469,134.93,134.89,0.68357865]
[1767617755035,7.51061906,134.93,134.89,0.68357865]
[1767617755229,4.61117563,134.92,134.89,0.68357865]
[1767617759842,12.02309488,134.92,134.89,0.68357865]
[1767617760442,12.64346298,134.92,134.89,0.68357865]
[1767617760733,12.64346298,134.92,134.88,0.69261146]
[1767617762832,12.02309488,134.92,134.88,0.69261146]
[1767617770058,12.12209488,134.92,134.88,0.69261146]
[1767617778458,0.6203681,134.91,134.88,0.69261146]
[1767617779761,10.99044253,134.92,134.88,0.69261146]
[1767617782666,10.36480808,134.92,134.89,0.69261146]
[1767617783768,7.41191925,134.92,134.89,0.69261146]
[1767617789444,10.36480808,134.92,134.89,0.69261146]
[1767617790470,10.46380808,134.92,134.89,0.69261146]